bitfinex/quotes_SOLUSD_20250417
["timestamp","ask_amount","ask_price","bid_price","bid_amount"]
[1744904132443,7.54318473,132.57,132.54,30.67930858]
[1744904133324,26.40114656,132.57,132.53,30.67930858]
[1744904133632,49.32895744,132.56,132.5,0.063]
[1744904133835,101.44964886,132.56,132.53,30.67930858]
[1744904134737,7.54432289,132.55,132.53,30.67930858]
[1744904135519,7.54432289,132.55,132.52,30.67930858]
[1744904136116,7.54432289,132.55,132.54,30.67930858]
[1744904136529,7.54432289,132.55,132.53,30.67930858]
[1744904136730,26.40513013,132.55,132.52,30.67930858]
[1744904137638,7.54432289,132.55,132.53,30.67930858]
[1744904137840,90.34397536,132.56,132.54,30.67930858]
[1744904138019,7.54397536,132.56,132.54,30.67930858]
[1744904138215,7.54397536,132.56,132.55,30.67930858]
[1744904138629,7.54397536,132.56,132.54,30.67930858]
[1744904139243,158.530104,132.57,132.5,0.063]
[1744904139423,158.530104,132.57,132.52,30.67930858]
[1744904139936,127.85079542,132.57,132.53,30.67930858]
[1744904140137,45.05079542,132.57,132.54,30.67930858]
[1744904140520,26.40114656,132.57,132.55,30.67930858]
[1744904141236,18.85796183,132.57,132.54,30.67930858]
[1744904141738,18.85796183,132.57,132.55,30.67930858]
[1744904142128,7.54261577,132.58,132.56,30.67930858]
[1744904142323,7.54261577,132.58,132.57,30.67930858]
[1744904142525,7.54147812,132.6,132.57,30.67930858]
[1744904142756,7.54147812,132.6,132.59,30.67930858]
[1744904142931,7.54147812,132.6,132.55,6.0133]
[1744904143237,18.85268523,132.61,132.58,30.67930858]
[1744904143745,7.54034082,132.62,132.6,30.67930858]
[1744904144054,7.54034082,132.62,132.61,30.67930858]
[1744904144623,7.56999386,132.63,132.61,30.67930858]
[1744904144844,7.56999386,132.63,132.62,30.67930858]
[1744904144845,0.03,132.63,132.62,30.67930858]
[1744904145037,7.56977229,132.63,132.62,30.67930858]
[1744904145431,0.03,132.63,132.62,30.67930858]
[1744904148846,0.03,132.63,132.59,16.88]
[1744904149355,0.03,132.63,132.6,30.67930858]
[1744904149650,7.56977229,132.63,132.6,30.67930858]
[1744904150724,18.64964886,132.62,132.59,30.67930858]
[1744904151856,7.54090943,132.61,132.59,30.67930858]
[1744904152358,7.54090943,132.61,132.55,30.43758398]
[1744904152547,7.54090943,132.61,132.59,30.67930858]
[1744904153061,30.67930858,132.61,132.57,30.67930858]
[1744904154152,49.32895744,132.6,132.55,73.55930858]
[1744904154335,18.64964886,132.6,132.56,30.67930858]
[1744904154661,109.19119287,132.62,132.57,30.67930858]
[1744904154864,139.87050145,132.62,132.57,30.67930858]
[1744904155257,18.64964886,132.61,132.57,30.67930858]
[1744904155457,49.32895744,132.61,132.56,30.67930858]
[1744904156536,18.64964886,132.61,132.56,30.67930858]
[1744904156737,49.32895744,132.61,132.56,30.67930858]
[1744904157236,18.64964886,132.61,132.57,30.67930858]
[1744904157957,7.54147812,132.6,132.57,30.67930858]
[1744904158259,7.54147812,132.6,132.58,30.67930858]
[1744904158430,7.54147812,132.6,132.57,30.67930858]
[1744904158633,7.54147812,132.6,132.56,30.67930858]
[1744904158953,7.54147812,132.6,132.57,30.67930858]
[1744904159957,18.64964886,132.61,132.55,42.88]
[1744904160161,49.32895744,132.61,132.56,30.67930858]
[1744904160357,30.67930858,132.6,132.55,47.55930858]
[1744904160661,101.44964886,132.61,132.57,30.67930858]
[1744904161145,82.8,132.61,132.58,30.67930858]
[1744904161338,26.39119287,132.62,132.58,30.67930858]
[1744904161533,57.07050145,132.62,132.57,30.67930858]
[1744904161735,57.07050145,132.62,132.58,30.67930858]
[1744904162943,30.67930858,132.6,132.56,30.67930858]
[1744904163447,49.32895744,132.61,132.56,30.67930858]
[1744904163968,7.54147812,132.6,132.57,30.67930858]
[1744904164145,7.54147812,132.6,132.56,30.67930858]
[1744904165459,26.39517344,132.6,132.55,47.55930858]
[1744904165772,26.39517344,132.6,132.53,56.67930858]
[1744904165773,30.67930858,132.58,132.53,56.67930858]
[1744904165947,30.67930858,132.58,132.53,30.67930858]
[1744904166140,26.40114656,132.57,132.53,30.67930858]
[1744904166338,7.54318473,132.57,132.54,30.67930858]
[1744904166540,7.54318473,132.57,132.55,30.67930858]
[1744904167046,7.54318473,132.57,132.54,30.67930858]
[1744904167460,26.39915521,132.58,132.54,30.67930858]
[1744904169167,49.32895744,132.55,132.5,0.063]
[1744904169372,153.0589341,132.58,132.5,30.74230858]
[1744904169373,49.32895744,132.54,132.5,30.74230858]
[1744904169565,49.32895744,132.52,132.5,0.063]
[1744904169747,49.32895744,132.51,132.5,0.063]
[1744904169949,18.64964886,132.51,132.5,0.063]
[1744904170371,82.8,132.52,132.5,0.063]
[1744904170865,113.47930858,132.52,132.5,0.063]
[1744904171261,82.8,132.52,132.5,0.063]
[1744904171560,7.54660025,132.51,132.5,0.063]
[1744904171968,7.54660025,132.51,132.5,30.74230858]
[1744904173167,7.5448921,132.54,132.5,30.74230858]
[1744904173357,7.5448921,132.54,132.51,30.67930858]
[1744904173969,7.5448921,132.54,132.52,30.67930858]
[1744904174274,26.40712237,132.54,132.51,30.67930858]
[1744904174475,26.40712237,132.54,132.5,30.74230858]
[1744904175772,7.5448921,132.54,132.51,30.67930858]
[1744904177172,57.08643095,132.54,132.5,0.063]
[1744904177378,57.08643095,132.54,132.5,30.74230858]
[1744904177548,57.08643095,132.54,132.5,0.063]
[1744904178066,18.64964886,132.53,132.5,0.063]
[1744904178373,49.32895744,132.53,132.5,0.063]
[1744904178576,18.64964886,132.53,132.5,0.063]
[1744904178869,49.32895744,132.53,132.5,0.063]
[1744904179547,30.67930858,132.52,132.5,0.063]
[1744904180046,139.67555769,132.51,132.5,0.063]
[1744904180464,108.99624911,132.51,132.5,0.063]
[1744904181174,139.67555769,132.51,132.5,0.063]
[1744904182672,108.99624911,132.51,132.5,0.063]
[1744904182872,7.5461927,132.52,132.5,30.74230858]
[1744904183068,7.5448921,132.54,132.51,30.67930858]
[1744904183264,7.5448921,132.54,132.52,30.67930858]
[1744904183871,7.5448921,132.54,132.51,30.67930858]
[1744904184452,18.64964886,132.53,132.5,0.063]
[1744904184681,18.64964886,132.53,132.5,30.74230858]
[1744904186181,90.3448921,132.54,132.51,30.67930858]
[1744904186582,90.3448921,132.54,132.52,30.67930858]
[1744904186961,82.8,132.54,132.53,30.67930858]
[1744904187161,7.54460179,132.55,132.53,30.67930858]
[1744904187363,7.54460179,132.55,132.51,30.67930858]
[1744904187670,26.40540903,132.55,132.51,30.67930858]
[1744904188256,18.64964886,132.54,132.5,30.74230858]
[1744904188482,101.44964886,132.54,132.5,30.74230858]
[1744904188682,132.12895744,132.54,132.5,0.063]
[1744904189685,7.5454614,132.53,132.5,0.063]
[1744904189883,18.64964886,132.52,132.5,0.063]
[1744904190265,26.40911491,132.53,132.5,30.74230858]
[1744904190678,7.5454614,132.53,132.52,30.67930858]
[1744904190877,7.5454614,132.53,132.51,30.67930858]
[1744904191269,7.5454614,132.53,132.5,19.18120518]
[1744904191465,7.5454614,132.53,132.51,19.11820518]
[1744904193365,37.97630067,132.57,132.52,19.11820518]
[1744904193568,18.85809549,132.57,132.53,19.11820518]
[1744904193867,26.40313819,132.56,132.52,19.11820518]
[1744904194068,18.64964886,132.55,132.52,19.11820518]
[1744904194287,18.64964886,132.55,132.51,19.11820518]
[1744904194491,18.64964886,132.55,132.52,19.11820518]
[1744904194783,18.64964886,132.55,132.51,19.11820518]
[1744904195467,18.64964886,132.55,132.52,19.11820518]
[1744904196183,7.5448921,132.54,132.52,19.11820518]
[1744904196389,7.5448921,132.54,132.51,19.11820518]
[1744904196993,7.5448921,132.54,132.5,0.063]
[1744904196994,7.5448921,132.54,132.52,19.11820518]
[1744904197191,7.5448921,132.54,132.53,19.11820518]
[1744904197372,7.5448921,132.54,132.52,19.11820518]
[1744904198393,7.54432289,132.55,132.52,19.11820518]
[1744904200381,7.54432289,132.55,132.53,19.11820518]
[1744904201497,1.6198,132.59,132.54,19.11820518]
[1744904201498,103.27538521,132.59,132.54,19.11820518]
[1744904201789,103.27538521,132.59,132.52,7.54601175]
[1744904201790,101.68558521,132.59,132.56,19.11820518]
[1744904201984,26.39915521,132.58,132.54,19.11820518]
[1744904203769,26.39915521,132.58,132.55,19.11820518]
[1744904206488,26.39915521,132.58,132.54,19.11820518]
[1744904206693,37.76785404,132.57,132.51,26.0]
[1744904206887,120.56785404,132.57,132.52,19.11820518]
[1744904207394,18.64964886,132.55,132.5,0.063]
[1744904207694,18.64964886,132.53,132.5,0.063]
[1744904207875,82.8,132.53,132.5,19.18120518]
[1744904208068,82.8,132.53,132.52,19.11820518]
[1744904208492,90.3454614,132.53,132.52,19.11820518]
[1744904208882,7.54375377,132.56,132.52,19.11820518]
[1744904209081,7.54375377,132.56,132.54,19.11820518]
[1744904209282,7.54375377,132.56,132.5,24.44966199]
[1744904209283,26.40313819,132.56,132.53,19.11820518]
[1744904209482,18.64964886,132.55,132.52,19.11820518]
[1744904209893,7.54375377,132.56,132.53,19.11820518]
[1744904210400,26.19283359,132.57,132.54,19.11820518]
[1744904210574,7.54318473,132.57,132.55,19.11820518]
[1744904210885,18.64964886,132.56,132.5,16.903]
[1744904211083,7.54318473,132.57,132.54,19.11820518]
[1744904211399,45.51935174,132.57,132.5,26.063]
[1744904211687,120.56785404,132.56,132.52,19.11820518]
[1744904211870,120.56785404,132.56,132.51,19.11820518]
[1744904212075,37.76785404,132.54,132.5,0.063]
[1744904212478,7.5454614,132.53,132.51,19.11820518]
[1744904212777,7.5454614,132.53,132.5,0.063]
[1744904213090,26.40911491,132.53,132.5,0.063]
[1744904213491,18.64964886,132.52,132.5,0.063]
[1744904213689,101.44964886,132.52,132.5,0.063]
[1744904214384,7.54660025,132.51,132.5,19.18120518]
[1744904215095,26.19624911,132.51,132.5,0.063]
[1744904215296,7.54660025,132.51,132.5,0.063]
[1744904218881,7.54660025,132.51,132.49,0.063]
[1744904218882,18.64964886,132.5,132.49,0.063]
[1744904220599,90.34660025,132.51,132.49,0.063]
[1744904221094,90.34660025,132.51,132.49,19.18120518]
[1744904221301,90.34660025,132.51,132.5,19.11820518]
[1744904221505,7.54660025,132.51,132.5,19.11820518]
[1744904221710,7.54318473,132.57,132.5,44.76741036]
[1744904221895,7.54318473,132.57,132.56,19.11820518]
[1744904222209,7.54318473,132.57,132.55,19.11820518]
[1744904222785,45.04880407,132.58,132.55,19.11820518]
[1744904223487,26.39915521,132.58,132.56,19.11820518]
[1744904224002,26.39915521,132.58,132.55,19.11820518]
[1744904224795,18.85653944,132.58,132.55,19.11820518]
[1744904225319,18.85653944,132.58,132.51,26.66474457]
[1744904225320,18.85653944,132.58,132.56,19.11820518]
[1744904225691,0.03,132.59,132.57,19.11820518]
[1744904225911,0.03,132.59,132.58,19.11820518]
[1744904233317,0.03,132.59,132.58,38.5207335]
[1744904233496,0.03,132.6,132.58,46.06334927]
[1744904233698,0.03,132.6,132.59,35.93820518]
[1744904234307,0.03,132.63,132.62,26.0]
[1744904234609,0.03,132.63,132.62,45.11820518]
[1744904236222,0.03,132.67,132.63,0.28432314]
[1744904236418,0.03,132.67,132.66,45.11820518]
[1744904237497,0.03,132.69,132.66,52.65627241]
[1744904237711,0.03,132.69,132.67,19.11820518]
[1744904237903,0.03,132.69,132.68,19.11820518]
[1744904239927,0.03,132.69,132.68,26.65513614]
[1744904241124,0.03,132.69,132.68,52.65513614]
[1744904243730,0.03,132.71,132.69,26.0]
[1744904243921,0.03,132.71,132.69,45.40252832]
[1744904245132,0.03,132.71,132.69,52.93889127]
[1744904245339,0.03,132.75,132.69,72.05709645]
[1744904245631,0.03,132.75,132.74,19.11820518]
[1744904247844,0.03,132.75,132.74,26.0]
[1744904248009,0.03,132.75,132.74,45.11820518]
[1744904249617,0.03,132.75,132.74,52.9360525]
[1744904249819,0.03,132.75,132.74,58.92660785]
[1744904250020,0.03,132.75,132.74,52.9360525]
[1744904250535,2.6603285,132.81,132.78,26.0]
[1744904250735,2.6603285,132.81,132.8,19.11820518]
[1744904254045,10.18988199,132.81,132.8,19.11820518]
[1744904254259,10.18988199,132.81,132.77,19.11820518]
[1744904254428,29.30808717,132.81,132.76,16.8]
[1744904254622,29.01376573,132.81,132.77,19.11820518]
[1744904255149,10.18988199,132.81,132.78,19.11820518]
[1744904255453,10.18988199,132.81,132.76,16.8]
[1744904255633,10.18988199,132.81,132.79,19.11820518]
[1744904256661,2.6603285,132.81,132.8,19.11820518]
[1744904256839,2.6603285,132.81,132.77,0.28432314]
[1744904257145,2.6603285,132.81,132.8,19.11820518]
[1744904259038,10.18988199,132.81,132.79,19.11820518]
[1744904259645,10.18988199,132.81,132.8,19.11820518]
[1744904259846,10.18988199,132.81,132.79,19.11820518]
[1744904260528,29.01376573,132.81,132.77,19.11820518]
[1744904261037,29.01376573,132.81,132.78,19.11820518]
[1744904261949,29.01376573,132.81,132.79,19.11820518]
[1744904262130,10.18988199,132.81,132.8,19.11820518]
[1744904262327,2.6603285,132.81,132.8,19.11820518]
[1744904265377,2.6603285,132.81,132.8,26.64832566]
[1744904265564,2.6603285,132.81,132.8,19.11820518]
[1744904266154,2.6603285,132.81,132.8,26.9326488]
[1744904266743,2.6603285,132.81,132.8,19.11820518]
[1744904266955,2.6603285,132.81,132.8,35.89820518]
[1744904267636,2.6603285,132.81,132.8,43.7126488]
[1744904268061,2.6603285,132.81,132.8,69.7126488]
[1744904269363,2.6603285,132.81,132.8,61.89820518]
[1744904270384,2.6603285,132.81,132.8,52.64832566]
[1744904270554,2.6603285,132.81,132.8,69.42832566]
[1744904271257,2.6603285,132.81,132.8,61.89820518]
[1744904271744,2.6603285,132.81,132.8,69.42832566]
[1744904272839,2.6603285,132.81,132.8,69.7126488]
[1744904274375,2.6603285,132.81,132.8,61.89820518]
[1744904276069,2.6603285,132.81,132.8,62.18252832]
[1744904276247,2.6603285,132.81,132.8,69.7126488]
[1744904276547,2.6603285,132.81,132.8,62.18252832]
[1744904276747,2.6603285,132.81,132.8,69.7126488]
[1744904277247,2.6603285,132.81,132.8,61.89820518]
[1744904277656,19.11820518,132.94,132.84,0.28432314]
[1744904277857,18.80700387,132.93,132.89,19.11820518]
[1744904278055,7.52219046,132.94,132.91,19.11820518]
[1744904278463,18.64964886,132.94,132.91,19.11820518]
[1744904278778,19.11820518,132.92,132.86,7.81104299]
[1744904278950,19.11820518,132.9,132.84,26.0]
[1744904279269,18.64964886,132.9,132.86,19.11820518]
[1744904279672,37.76785404,132.9,132.85,19.11820518]
[1744904279853,24.84104886,132.9,132.86,19.11820518]
[1744904280373,32.36587823,132.9,132.86,19.11820518]
[1744904280568,13.71622937,132.9,132.86,19.11820518]
[1744904280773,13.71622937,132.9,132.87,19.11820518]
[1744904281260,7.52400326,132.91,132.89,19.11820518]
[1744904281461,8.213,132.93,132.9,19.11820518]
[1744904281658,8.213,132.93,132.91,19.11820518]
[1744904281865,8.213,132.93,132.9,19.11820518]
[1744904282062,8.213,132.93,132.89,19.11820518]
[1744904282370,15.73598502,132.93,132.89,19.11820518]
[1744904282570,15.73598502,132.93,132.9,19.11820518]
[1744904283162,15.73598502,132.93,132.91,19.11820518]
[1744904283572,15.73598502,132.93,132.9,19.11820518]
[1744904283775,15.73598502,132.93,132.91,19.11820518]
[1744904284375,9.16338502,132.93,132.91,19.11820518]
[1744904284573,7.52298502,132.93,132.92,19.11820518]
[1744904285258,7.52232279,132.94,132.92,19.11820518]
[1744904285464,7.52232279,132.94,132.91,19.11820518]
[1744904286055,7.52232279,132.94,132.92,19.11820518]
[1744904286258,0.03,132.95,132.93,19.11820518]
[1744904286564,7.5516681,132.95,132.94,19.11820518]
[1744904286967,7.5516681,132.95,132.9,42.76]
[1744904287166,26.35572977,132.95,132.92,19.11820518]
[1744904287366,45.47393495,132.95,132.9,35.87820518]
[1744904287574,18.64964886,132.94,132.9,35.87820518]
[1744904287951,45.47393495,132.95,132.9,35.87820518]
[1744904288164,7.5516681,132.95,132.92,19.11820518]
[1744904288367,7.5516681,132.95,132.93,19.11820518]
[1744904288558,7.5516681,132.95,132.92,19.11820518]
[1744904289259,26.66987328,132.95,132.9,19.11820518]
[1744904289464,26.66987328,132.95,132.87,26.0]
[1744904289465,19.11820518,132.93,132.89,19.11820518]
[1744904289665,7.5516681,132.95,132.92,19.11820518]
[1744904289865,7.5516681,132.95,132.93,19.11820518]
[1744904290392,7.5516681,132.95,132.94,19.11820518]
[1744904290562,0.03,132.95,132.94,19.11820518]
[1744904291675,0.03,132.95,132.93,19.11820518]
[1744904292277,0.03,132.95,132.94,19.11820518]
[1744904294962,0.03,132.95,132.91,16.76]
[1744904295266,0.03,132.95,132.92,19.11820518]
[1744904295672,19.11820518,132.94,132.89,19.11820518]
[1744904296069,18.67964886,132.95,132.87,16.76]
[1744904296277,19.11820518,132.92,132.87,35.87820518]
[1744904296474,18.67964886,132.95,132.87,35.87820518]
[1744904296675,19.11820518,132.93,132.88,19.11820518]
[1744904296985,26.64152747,132.92,132.87,35.87820518]
[1744904297184,26.64152747,132.92,132.87,16.76]
[1744904297375,19.11820518,132.91,132.84,26.0]
[1744904297568,1.54,132.9,132.83,16.76]
[1744904297765,6.3093,132.92,132.89,19.11820518]
[1744904297971,0.03,132.95,132.91,19.11820518]
[1744904298165,0.03,132.95,132.93,19.11820518]
[1744904298381,0.03,132.95,132.92,19.11820518]
[1744904298974,0.03,132.95,132.93,19.11820518]
[1744904299776,0.03,132.95,132.92,19.11820518]
[1744904300771,0.03,132.95,132.94,19.11820518]
[1744904301573,0.03,132.95,132.93,19.11820518]
[1744904301981,0.03,132.95,132.94,19.11820518]
[1744904303076,0.03,132.95,132.91,7.52364891]
[1744904303373,0.03,132.95,132.94,19.11820518]
[1744904307280,0.03,132.95,132.92,26.0]
[1744904307465,0.03,132.95,132.94,19.11820518]
[1744904307664,0.03,132.95,132.91,16.76]
[1744904307882,0.03,132.95,132.94,19.11820518]
[1744904308083,0.03,132.95,132.91,16.76]
[1744904308279,0.03,132.95,132.94,19.11820518]
[1744904308595,0.03,132.95,132.92,19.11820518]
[1744904308971,0.03,132.95,132.91,35.87820518]
[1744904309174,7.55162467,132.95,132.92,19.11820518]
[1744904309492,7.55162467,132.95,132.93,19.11820518]
[1744904311174,0.03,132.95,132.93,19.11820518]
[1744904312293,0.03,132.95,132.92,19.11820518]
[1744904312483,20.70710518,132.94,132.89,19.11820518]
[1744904312686,19.11820518,132.93,132.88,19.11820518]
[1744904313086,19.11820518,132.92,132.88,19.11820518]
[1744904313291,7.52388834,132.91,132.87,35.85820518]
[1744904313492,26.64209352,132.91,132.86,19.11820518]
[1744904313695,26.64209352,132.91,132.87,19.11820518]
[1744904313879,19.11820518,132.9,132.85,19.11820518]
[1744904314194,19.11820518,132.9,132.81,0.063]
[1744904314195,19.11820518,132.87,132.81,0.063]
[1744904314500,19.11820518,132.85,132.81,0.063]
[1744904314796,20.75230518,132.86,132.81,19.18120518]
[1744904314985,19.11820518,132.85,132.81,0.063]
[1744904315380,7.52785305,132.84,132.81,0.063]
[1744904315582,37.98430799,132.84,132.81,0.063]
[1744904315792,30.45645494,132.83,132.81,0.063]
[1744904315991,30.45645494,132.82,132.81,0.063]
[1744904317101,49.1061038,132.82,132.81,0.063]
[1744904317305,7.53182194,132.77,132.73,30.51945494]
[1744904317689,30.45645494,132.76,132.73,0.063]
[1744904317893,37.98827688,132.77,132.73,30.51945494]
[1744904318205,7.53182194,132.77,132.73,30.51945494]
[1744904318404,32.02135494,132.78,132.73,0.063]
[1744904318700,90.33021588,132.8,132.75,30.45645494]
[1744904318901,7.53021588,132.8,132.76,30.45645494]
[1744904319084,84.3649,132.82,132.78,30.45645494]
[1744904319285,1.5649,132.82,132.78,30.45645494]
[1744904319599,39.55052721,132.82,132.77,30.45645494]
[1744904319793,30.45645494,132.81,132.76,30.45645494]
[1744904320502,30.45645494,132.8,132.76,30.45645494]
[1744904320700,30.45645494,132.8,132.75,30.45645494]
[1744904320887,30.45645494,132.81,132.76,30.45645494]
[1744904321287,39.55052721,132.82,132.77,30.45645494]
[1744904321495,30.45645494,132.81,132.76,30.45645494]
[1744904323503,37.98620985,132.81,132.76,30.45645494]
[1744904323709,37.98620985,132.81,132.77,30.45645494]
[1744904323897,32.02135494,132.82,132.77,30.45645494]
[1744904324498,39.55041695,132.82,132.74,7.53329009]
[1744904324795,32.02135494,132.82,132.78,30.45645494]
[1744904325008,1.5649,132.82,132.78,30.45645494]
[1744904325208,108.8,132.84,132.74,32.56030054]
[1744904325209,82.8,132.84,132.8,30.45645494]
[1744904325689,120.7843178,132.84,132.79,30.45645494]
[1744904326506,120.7843178,132.84,132.78,30.45645494]
[1744904326507,30.45645494,132.83,132.78,30.45645494]
[1744904327200,82.8,132.84,132.79,30.45645494]
[1744904327398,82.8,132.84,132.81,30.45645494]
[1744904327598,37.98389423,132.85,132.81,30.45645494]
[1744904328003,30.45645494,132.84,132.8,30.45645494]
[1744904328309,37.98448161,132.84,132.8,30.45645494]
[1744904328708,37.98448161,132.84,132.79,30.45645494]
[1744904328915,30.45645494,132.83,132.78,30.45645494]
[1744904329903,37.98510322,132.83,132.78,37.98764806]
[1744904330209,30.45645494,132.83,132.77,16.76]
[1744904330396,37.98501056,132.83,132.78,30.45645494]
[1744904330719,30.45645494,132.83,132.79,30.45645494]
[1744904331104,90.3275956,132.85,132.81,30.45645494]
[1744904331299,7.52695156,132.86,132.83,30.45645494]
[1744904331899,82.8,132.87,132.84,30.45645494]
[1744904332109,138.26635494,132.89,132.84,30.45645494]
[1744904332292,138.26635494,132.89,132.8,7.53012048]
[1744904332293,30.45645494,132.87,132.8,7.53012048]
[1744904332496,30.45645494,132.85,132.8,30.45645494]
[1744904332696,30.45645494,132.84,132.8,30.45645494]
[1744904332896,30.45645494,132.82,132.77,47.21645494]
[1744904333116,30.45645494,132.82,132.78,30.45645494]
[1744904333320,30.45645494,132.82,132.77,47.21645494]
[1744904333491,30.45645494,132.82,132.75,33.53279247]
[1744904333692,30.45645494,132.81,132.77,30.45645494]
[1744904333903,7.52955349,132.81,132.77,30.45645494]
[1744904334211,37.98600843,132.81,132.76,30.45645494]
[1744904335406,7.52955349,132.81,132.77,30.45645494]
[1744904336320,7.52955349,132.81,132.75,7.53279247]
[1744904336521,7.52955349,132.81,132.77,30.45645494]
[1744904336715,39.56006047,132.82,132.77,30.45645494]
[1744904336915,39.56006047,132.82,132.78,30.45645494]
[1744904337317,9.10360553,132.82,132.78,30.45645494]
[1744904337517,39.56006047,132.82,132.78,30.45645494]
[1744904337714,9.10361173,132.82,132.78,30.45645494]
[1744904337930,30.45645494,132.81,132.74,13.72625745]
[1744904338223,30.45645494,132.81,132.77,30.45645494]
[1744904338429,37.9865679,132.81,132.77,30.45645494]
[1744904338726,7.53011296,132.81,132.78,30.45645494]
[1744904339126,91.90366772,132.82,132.78,19.04037515]
[1744904339525,84.3745,132.82,132.79,19.04037515]
[1744904339725,82.8,132.82,132.8,19.04037515]
[1744904340030,26.17782729,132.84,132.8,19.04037515]
[1744904340730,110.98885246,132.85,132.81,19.04037515]
[1744904340929,91.94847731,132.85,132.81,19.04037515]
[1744904341127,122.40052255,132.85,132.81,30.45204524]
[1744904341332,13.57607944,132.87,132.83,30.45204524]
[1744904342132,7.52647944,132.87,132.83,30.45204524]
[1744904345455,37.97852468,132.87,132.83,30.45204524]
[1744904345936,7.52647944,132.87,132.83,30.45204524]
[1744904346138,37.97852468,132.87,132.8,7.53012048]
[1744904346339,37.97852468,132.87,132.83,30.45204524]
[1744904346716,101.44964886,132.88,132.83,30.45204524]
[1744904346717,139.42751445,132.88,132.83,30.45204524]
[1744904346918,0.03,132.89,132.86,30.45204524]
[1744904347318,7.55503929,132.89,132.86,30.45204524]
[1744904347936,0.03,132.89,132.87,30.45204524]
[1744904348422,0.03,132.89,132.88,30.45204524]
[1744904349018,0.03,132.89,132.88,37.97763223]
[1744904349340,0.03,132.89,132.88,54.71763223]
[1744904350120,0.03,132.89,132.88,61.53005537]
[1744904350347,0.03,132.95,132.91,26.0]
[1744904350528,0.03,132.95,132.94,30.45204524]
[1744904351839,0.03,132.95,132.94,37.9742357]
[1744904352852,0.03,132.95,132.94,64.25855884]
[1744904353027,0.03,132.97,132.96,7.8053821]
[1744904353357,0.03,133.01,132.99,26.0]
[1744904353664,0.03,133.01,133.0,30.45204524]
[1744904355246,0.03,133.01,133.0,37.97084223]
[1744904355467,0.03,133.01,133.0,30.45204524]
[1744904357242,0.03,133.01,133.0,37.97084223]
[1744904357433,0.03,133.01,133.0,30.45204524]
[1744904357752,0.03,133.01,133.0,37.97084223]
[1744904358149,0.03,133.01,133.0,68.42288747]
[1744904359252,0.03,133.01,133.0,37.97084223]
[1744904359835,0.03,133.01,133.0,30.45204524]
[1744904363337,0.03,133.01,133.0,37.97084223]
[1744904363744,0.03,133.01,133.0,30.45204524]
[1744904364757,0.03,133.01,133.0,7.51879699]
[1744904364978,0.03,133.01,133.0,68.42288747]
[1744904365187,0.03,133.01,133.0,37.97084223]
[1744904366285,0.03,133.01,132.98,16.74]
[1744904366576,0.03,133.01,133.0,30.45204524]
[1744904367287,0.03,133.01,133.0,18.97799651]
[1744904367582,0.03,133.01,132.97,33.52023223]
[1744904367583,0.03,133.01,132.97,18.97799651]
[1744904367786,18.97799651,132.98,132.94,18.97799651]
[1744904367994,18.97799651,132.97,132.93,18.97799651]
[1744904368179,26.49887031,132.97,132.91,24.30666065]
[1744904368348,7.51978416,132.99,132.94,18.97799651]
[1744904368666,7.51978416,132.99,132.97,18.97799651]
[1744904368984,7.51978416,132.99,132.95,18.97799651]
[1744904369172,7.51978416,132.99,132.95,30.38606968]
[1744904369563,7.51978416,132.99,132.96,30.38606968]
[1744904369861,7.51978416,132.99,132.95,30.38606968]
[1744904370069,37.90585384,132.99,132.94,30.38606968]
[1744904370269,37.90585384,132.99,132.95,30.38606968]
[1744904370575,101.62674417,133.01,132.91,50.30666065]
[1744904370576,7.51897216,133.0,132.97,30.38606968]
[1744904371285,30.38606968,132.99,132.91,50.30666065]
[1744904371468,30.38606968,132.99,132.94,30.38606968]
[1744904372074,30.38606968,132.99,132.95,30.38606968]
[1744904372270,90.31897216,133.0,132.97,30.38606968]
[1744904372477,7.51897216,133.0,132.97,30.38606968]
[1744904373177,0.03,133.01,132.99,30.38606968]
[1744904373686,0.03,133.01,133.0,30.38606968]
[1744904375465,0.03,133.01,133.0,60.77213936]
[1744904376365,0.03,133.01,133.0,94.57525949]
[1744904376558,0.03,133.07,133.0,113.37225197]
[1744904376866,0.03,133.07,133.05,30.38606968]
[1744904377572,7.54488152,133.07,133.05,30.38606968]
[1744904377773,37.9309512,133.07,133.03,30.38606968]
[1744904378176,7.54488152,133.07,133.03,30.38606968]
[1744904378681,7.54488152,133.07,133.04,30.38606968]
[1744904378884,7.54488152,133.07,133.01,16.72]
[1744904379180,7.54488152,133.07,133.03,30.38606968]
[1744904379678,30.38606968,133.05,133.0,47.10606968]
[1744904379856,38.31916968,133.04,132.99,30.38606968]
[1744904380254,30.38606968,133.03,132.98,30.38606968]